[Event "Late-Titled-Tuesday-Blitz-May-28-2024"]
[Site "Chess.com"]
[Date "2024.05.28"]
[Round "5"]
[White "yaguigor"]
[Black "Redzishchess"]
[Result "1-0"]
[WhiteElo "2592"]
[BlackElo "2452"]
[TimeControl "180+1"]
[EndTime "14:52:35 PDT"]
[Termination "yaguigor won by resignation"]

1. e4 {[%clk 0:02:38.2]} 1... c5 {[%clk 0:02:58.7]} 2. Nf3 {[%clk 0:02:37.7]}
2... d6 {[%clk 0:02:58.4]} 3. d4 {[%clk 0:02:38]} 3... cxd4 {[%clk 0:02:59.3]}
4. Nxd4 {[%clk 0:02:38.1]} 4... Nf6 {[%clk 0:03:00.2]} 5. Nc3 {[%clk 0:02:38.1]}
5... g6 {[%clk 0:03:00.8]} 6. Be3 {[%clk 0:02:37.5]} 6... Bg7 {[%clk 0:03:00.9]}
7. f3 {[%clk 0:02:37.9]} 7... O-O {[%clk 0:03:01.4]} 8. Qd2 {[%clk 0:02:38.3]}
8... Nc6 {[%clk 0:03:01.7]} 9. O-O-O {[%clk 0:02:38.6]} 9... d5 {[%clk
0:03:02.3]} 10. Qe1 {[%clk 0:02:38.3]} 10... e5 {[%clk 0:03:00.8]} 11. Nxc6
{[%clk 0:02:38.8]} 11... bxc6 {[%clk 0:03:01.7]} 12. exd5 {[%clk 0:02:39.1]}
12... Nxd5 {[%clk 0:03:02.3]} 13. Bc4 {[%clk 0:02:36.8]} 13... Be6 {[%clk
0:03:01.4]} 14. Kb1 {[%clk 0:02:36.1]} 14... Qa5 {[%clk 0:02:28.2]} 15. Nxd5
{[%clk 0:02:24.5]} 15... Qxe1 {[%clk 0:02:28.2]} 16. Rhxe1 {[%clk 0:02:08.7]}
16... cxd5 {[%clk 0:02:27]} 17. Bxd5 {[%clk 0:02:09.3]} 17... Bxd5 {[%clk
0:02:13]} 18. Rxd5 {[%clk 0:02:10.2]} 18... a5 {[%clk 0:02:12.3]} 19. a4 {[%clk
0:02:02.5]} 19... Rab8 {[%clk 0:01:58.4]} 20. Rxa5 {[%clk 0:01:57.4]} 20... e4
{[%clk 0:01:58.8]} 21. Rb5 {[%clk 0:01:57.4]} 21... Ra8 {[%clk 0:01:41.3]} 22.
a5 {[%clk 0:01:43.8]} 22... exf3 {[%clk 0:01:41.2]} 23. gxf3 {[%clk 0:01:42.3]}
23... Rab8 {[%clk 0:01:39.8]} 24. Rxb8 {[%clk 0:01:40.3]} 24... Rxb8 {[%clk
0:01:40.7]} 25. Bb6 {[%clk 0:01:39.8]} 1-0

[Event "Late-Titled-Tuesday-Blitz-May-28-2024"]
[Site "Chess.com"]
[Date "2024.05.28"]
[Round "5"]
[White "NeverGiveUppp"]
[Black "mostafa_sakha"]
[Result "1-0"]
[WhiteElo "2599"]
[BlackElo "2366"]
[TimeControl "180+1"]
[EndTime "14:53:20 PDT"]
[Termination "NeverGiveUppp won by resignation"]

1. e4 {[%clk 0:03:00.9]} 1... e5 {[%clk 0:02:59.6]} 2. Nf3 {[%clk 0:03:00.9]}
2... Nc6 {[%clk 0:02:59.6]} 3. Nc3 {[%clk 0:03:01.2]} 3... Nf6 {[%clk
0:02:59.6]} 4. Bb5 {[%clk 0:03:01.2]} 4... Bb4 {[%clk 0:02:59.4]} 5. O-O {[%clk
0:03:01.1]} 5... O-O {[%clk 0:02:59.5]} 6. d3 {[%clk 0:03:01.1]} 6... d6 {[%clk
0:02:58.3]} 7. Bg5 {[%clk 0:03:00.4]} 7... Bxc3 {[%clk 0:02:44.6]} 8. bxc3
{[%clk 0:03:01.3]} 8... Ne7 {[%clk 0:02:44.8]} 9. Nh4 {[%clk 0:03:00.5]} 9...
Ng6 {[%clk 0:02:38.2]} 10. Nxg6 {[%clk 0:02:58.4]} 10... hxg6 {[%clk 0:02:28.8]}
11. f4 {[%clk 0:02:56.8]} 11... c6 {[%clk 0:02:23.2]} 12. Ba4 {[%clk 0:02:49.6]}
12... Qb6+ {[%clk 0:02:22.5]} 13. Kh1 {[%clk 0:02:46.8]} 13... Ng4 {[%clk
0:02:22.1]} 14. Qf3 {[%clk 0:02:32.8]} 14... f6 {[%clk 0:02:07.8]} 15. Bb3+
{[%clk 0:02:31]} 15... d5 {[%clk 0:01:48.5]} 16. fxe5 {[%clk 0:02:07.7]} 16...
Nxe5 {[%clk 0:01:42.7]} 17. Qg3 {[%clk 0:02:05.5]} 17... Be6 {[%clk 0:01:38.7]}
18. Bf4 {[%clk 0:02:03.9]} 18... Qc7 {[%clk 0:00:50.1]} 19. d4 {[%clk
0:01:57.6]} 19... g5 {[%clk 0:00:47.5]} 20. Bd2 {[%clk 0:01:53.3]} 1-0

[Event "Late-Titled-Tuesday-Blitz-May-28-2024"]
[Site "Chess.com"]
[Date "2024.05.28"]
[Round "5"]
[White "lachesisQ"]
[Black "slidingknight2775"]
[Result "1-0"]
[WhiteElo "3058"]
[BlackElo "2620"]
[TimeControl "180+1"]
[EndTime "14:53:26 PDT"]
[Termination "lachesisQ won by resignation"]

1. e4 {[%clk 0:03:00.9]} 1... c5 {[%clk 0:02:59.2]} 2. Nf3 {[%clk 0:03:00.7]}
2... d6 {[%clk 0:02:59.5]} 3. d4 {[%clk 0:03:01.4]} 3... cxd4 {[%clk 0:03:00.2]}
4. Nxd4 {[%clk 0:03:02.3]} 4... Nf6 {[%clk 0:03:00.8]} 5. Nc3 {[%clk 0:03:02.8]}
5... a6 {[%clk 0:03:01.5]} 6. Bd3 {[%clk 0:03:00.3]} 6... g6 {[%clk 0:03:01.1]}
7. f3 {[%clk 0:02:59.1]} 7... Bg7 {[%clk 0:03:01.1]} 8. Be3 {[%clk 0:02:58.9]}
8... b5 {[%clk 0:03:01.1]} 9. Qd2 {[%clk 0:02:58.8]} 9... h5 {[%clk 0:03:01.2]}
10. a4 {[%clk 0:02:54.8]} 10... b4 {[%clk 0:03:00.9]} 11. Na2 {[%clk 0:02:54.7]}
11... a5 {[%clk 0:02:58.3]} 12. c3 {[%clk 0:02:54.9]} 12... bxc3 {[%clk
0:02:58.2]} 13. Nxc3 {[%clk 0:02:55.8]} 13... Bd7 {[%clk 0:02:56.6]} 14. O-O
{[%clk 0:02:55.3]} 14... O-O {[%clk 0:02:55.6]} 15. Bb5 {[%clk 0:02:54.8]} 15...
Na6 {[%clk 0:02:48.7]} 16. Nc6 {[%clk 0:02:44.3]} 16... Bxc6 {[%clk 0:02:38.2]}
17. Bxc6 {[%clk 0:02:45.2]} 17... Rb8 {[%clk 0:02:38]} 18. Bb5 {[%clk
0:02:44.5]} 18... Nb4 {[%clk 0:02:37.5]} 19. Rac1 {[%clk 0:02:41.9]} 19... Rc8
{[%clk 0:02:34.7]} 20. Rfd1 {[%clk 0:02:41.4]} 20... Nd7 {[%clk 0:02:27.7]} 21.
b3 {[%clk 0:02:29.1]} 21... Nc5 {[%clk 0:02:24]} 22. Bc4 {[%clk 0:02:28.7]}
22... Kh7 {[%clk 0:02:11.4]} 23. Nb5 {[%clk 0:02:28.4]} 23... Qb6 {[%clk
0:02:03.6]} 24. Kh1 {[%clk 0:02:26.5]} 24... Rfd8 {[%clk 0:01:58.2]} 25. Bxf7
{[%clk 0:02:23.3]} 25... Rf8 {[%clk 0:01:55.6]} 26. Bc4 {[%clk 0:02:19.3]} 26...
Nc6 {[%clk 0:01:50.9]} 27. Rb1 {[%clk 0:02:11.8]} 27... Ne5 {[%clk 0:01:49.4]}
28. Be2 {[%clk 0:02:11.8]} 28... Rfd8 {[%clk 0:01:41.6]} 29. b4 {[%clk
0:02:05.9]} 29... axb4 {[%clk 0:01:40.5]} 30. Qxb4 {[%clk 0:02:06.8]} 30... Nc6
{[%clk 0:01:37.9]} 31. Qc4 {[%clk 0:01:54.6]} 31... Ne5 {[%clk 0:01:34.9]} 32.
Qa2 {[%clk 0:01:53.8]} 32... Qa5 {[%clk 0:01:33.5]} 33. Bxc5 {[%clk 0:01:48.7]}
33... Rxc5 {[%clk 0:01:32]} 34. f4 {[%clk 0:01:45.5]} 34... Nc6 {[%clk
0:01:26.1]} 35. f5 {[%clk 0:01:41.5]} 35... Bf6 {[%clk 0:01:13]} 36. Qf7+ {[%clk
0:01:40.6]} 1-0

[Event "Late-Titled-Tuesday-Blitz-May-28-2024"]
[Site "Chess.com"]
[Date "2024.05.28"]
[Round "5"]
[White "giomar27"]
[Black "IngOscarArdila"]
[Result "1-0"]
[WhiteElo "2463"]
[BlackElo "2283"]
[TimeControl "180+1"]
[EndTime "14:53:35 PDT"]
[Termination "giomar27 won on time"]

1. Nf3 {[%clk 0:03:00.9]} 1... Nf6 {[%clk 0:02:56.9]} 2. g3 {[%clk 0:03:00.9]}
2... g6 {[%clk 0:02:19.6]} 3. b3 {[%clk 0:03:00.5]} 3... Bg7 {[%clk 0:02:14.6]}
4. Bb2 {[%clk 0:03:00.1]} 4... O-O {[%clk 0:02:15.5]} 5. Bg2 {[%clk 0:02:59.9]}
5... d6 {[%clk 0:01:55.6]} 6. d4 {[%clk 0:02:59.1]} 6... Nbd7 {[%clk 0:01:22.1]}
7. O-O {[%clk 0:02:58.3]} 7... c6 {[%clk 0:01:03.1]} 8. c4 {[%clk 0:02:57.9]}
8... Qc7 {[%clk 0:01:03.5]} 9. Nbd2 {[%clk 0:02:50.9]} 9... e5 {[%clk
0:01:01.3]} 10. Qc2 {[%clk 0:02:45.1]} 10... Re8 {[%clk 0:00:58.5]} 11. e4
{[%clk 0:02:38.4]} 11... a5 {[%clk 0:00:55.2]} 12. a3 {[%clk 0:02:37.9]} 12...
exd4 {[%clk 0:00:45]} 13. Nxd4 {[%clk 0:02:37.8]} 13... Nc5 {[%clk 0:00:44.7]}
14. Rfe1 {[%clk 0:02:37.9]} 14... Ne6 {[%clk 0:00:44.8]} 15. Rad1 {[%clk
0:02:27.3]} 15... Nxd4 {[%clk 0:00:32.6]} 16. Bxd4 {[%clk 0:02:26.7]} 16... Bg4
{[%clk 0:00:30.1]} 17. f3 {[%clk 0:02:25]} 17... Bc8 {[%clk 0:00:16.5]} 18. Qb2
{[%clk 0:02:24.8]} 18... Nh5 {[%clk 0:00:15.7]} 19. Bxg7 {[%clk 0:02:24.3]}
19... Nxg7 {[%clk 0:00:16.6]} 20. Nf1 {[%clk 0:02:24.9]} 20... Ne6 {[%clk
0:00:16.4]} 21. Ne3 {[%clk 0:02:25]} 21... b5 {[%clk 0:00:15.3]} 22. cxb5 {[%clk
0:02:24.2]} 22... cxb5 {[%clk 0:00:16.2]} 23. Nd5 {[%clk 0:02:24.8]} 23... Qd8
{[%clk 0:00:16.6]} 24. Nf6+ {[%clk 0:02:25.1]} 24... Kf8 {[%clk 0:00:17.1]} 25.
Nxe8 {[%clk 0:02:22]} 25... Qxe8 {[%clk 0:00:15.3]} 26. Qh8+ {[%clk 0:02:22]}
1-0

[Event "Late-Titled-Tuesday-Blitz-May-28-2024"]
[Site "Chess.com"]
[Date "2024.05.28"]
[Round "5"]
[White "TigrVShlyape"]
[Black "nocnypako"]
[Result "1-0"]
[WhiteElo "2914"]
[BlackElo "2699"]
[TimeControl "180+1"]
[EndTime "14:53:52 PDT"]
[Termination "TigrVShlyape won by resignation"]

1. d4 {[%clk 0:02:59.6]} 1... Nf6 {[%clk 0:03:00.2]} 2. Bf4 {[%clk 0:02:58.5]}
2... g6 {[%clk 0:03:00.3]} 3. c3 {[%clk 0:02:58.4]} 3... Bg7 {[%clk 0:03:00.7]}
4. Nf3 {[%clk 0:02:59]} 4... O-O {[%clk 0:03:00.6]} 5. Nbd2 {[%clk 0:02:59]}
5... d6 {[%clk 0:02:58.9]} 6. e4 {[%clk 0:02:57.4]} 6... Nbd7 {[%clk 0:02:58.4]}
7. h3 {[%clk 0:02:57]} 7... c5 {[%clk 0:02:57.8]} 8. d5 {[%clk 0:02:54.7]} 8...
b6 {[%clk 0:02:47.2]} 9. Bd3 {[%clk 0:02:50.4]} 9... a6 {[%clk 0:02:46.7]} 10.
a4 {[%clk 0:02:49.9]} 10... Bb7 {[%clk 0:02:46.7]} 11. O-O {[%clk 0:02:48.6]}
11... Qc7 {[%clk 0:02:43.3]} 12. Re1 {[%clk 0:02:46.7]} 12... Nh5 {[%clk
0:02:22.3]} 13. Bh2 {[%clk 0:02:46.1]} 13... e5 {[%clk 0:02:22.7]} 14. dxe6
{[%clk 0:02:43.9]} 14... fxe6 {[%clk 0:02:22.7]} 15. Bc4 {[%clk 0:02:38.3]}
15... Rae8 {[%clk 0:02:06.2]} 16. Ng5 {[%clk 0:02:37.4]} 16... Rf6 {[%clk
0:01:47.5]} 17. Qg4 {[%clk 0:02:34.4]} 17... Kh8 {[%clk 0:00:39.3]} 18. Nxe6
{[%clk 0:02:30.7]} 18... Rfxe6 {[%clk 0:00:28.7]} 19. Bxe6 {[%clk 0:02:29.9]}
19... Ndf6 {[%clk 0:00:28.9]} 20. Qh4 {[%clk 0:02:14.7]} 20... h6 {[%clk
0:00:08.1]} 21. e5 {[%clk 0:02:06.2]} 21... g5 {[%clk 0:00:08.1]} 22. Qc4 {[%clk
0:02:02.6]} 22... d5 {[%clk 0:00:03.1]} 23. Qf1 {[%clk 0:01:57.3]} 23... Qc6
{[%clk 0:00:02]} 24. exf6 {[%clk 0:01:54.3]} 1-0

[Event "Late-Titled-Tuesday-Blitz-May-28-2024"]
[Site "Chess.com"]
[Date "2024.05.28"]
[Round "5"]
[White "Maikrosoft63"]
[Black "Kombinator01"]
[Result "1-0"]
[WhiteElo "2605"]
[BlackElo "2470"]
[TimeControl "180+1"]
[EndTime "14:54:11 PDT"]
[Termination "Maikrosoft63 won by checkmate"]

1. e4 {[%clk 0:03:00.9]} 1... e5 {[%clk 0:02:59.9]} 2. Nc3 {[%clk 0:03:00.7]}
2... Nf6 {[%clk 0:02:59.6]} 3. f4 {[%clk 0:03:00.7]} 3... d5 {[%clk 0:02:59.5]}
4. fxe5 {[%clk 0:03:00.6]} 4... Nxe4 {[%clk 0:03:00.1]} 5. Qf3 {[%clk
0:03:01.1]} 5... Nc6 {[%clk 0:03:00.4]} 6. Bb5 {[%clk 0:03:00.8]} 6... Nxc3
{[%clk 0:02:59.7]} 7. dxc3 {[%clk 0:03:00.2]} 7... Qh4+ {[%clk 0:03:00]} 8. g3
{[%clk 0:03:00.6]} 8... Qe4+ {[%clk 0:03:00.5]} 9. Qxe4 {[%clk 0:03:01.3]} 9...
dxe4 {[%clk 0:03:01.4]} 10. Bxc6+ {[%clk 0:03:02]} 10... bxc6 {[%clk 0:03:01.8]}
11. Be3 {[%clk 0:03:02.8]} 11... g6 {[%clk 0:02:52.7]} 12. O-O-O {[%clk
0:02:59.9]} 12... Bg7 {[%clk 0:02:53]} 13. Bg5 {[%clk 0:02:44.8]} 13... Bg4
{[%clk 0:02:51.9]} 14. Rd4 {[%clk 0:02:43.5]} 14... h6 {[%clk 0:02:45.9]} 15.
Bf6 {[%clk 0:02:40.2]} 15... O-O {[%clk 0:02:06.1]} 16. Rxe4 {[%clk 0:02:39.2]}
16... Bf5 {[%clk 0:02:05.8]} 17. Rd4 {[%clk 0:02:34]} 17... Bxf6 {[%clk
0:02:01.4]} 18. exf6 {[%clk 0:02:34]} 18... Rfe8 {[%clk 0:02:02.3]} 19. Nf3
{[%clk 0:02:31.3]} 19... Re2 {[%clk 0:02:01.1]} 20. Rd2 {[%clk 0:02:31.3]} 20...
Rae8 {[%clk 0:01:59.4]} 21. Nd4 {[%clk 0:02:30.9]} 21... Rxd2 {[%clk 0:01:36]}
22. Kxd2 {[%clk 0:02:31.8]} 22... Bh3 {[%clk 0:01:35]} 23. Re1 {[%clk
0:02:30.4]} 23... Rxe1 {[%clk 0:01:32.9]} 24. Kxe1 {[%clk 0:02:30.4]} 24... Bd7
{[%clk 0:01:32.3]} 25. Kd2 {[%clk 0:02:29.7]} 25... Kh7 {[%clk 0:01:31.4]} 26.
Nf3 {[%clk 0:02:25.7]} 26... g5 {[%clk 0:01:32.3]} 27. Ne5 {[%clk 0:02:26]}
27... Be8 {[%clk 0:01:29.2]} 28. Ke3 {[%clk 0:02:26.4]} 28... h5 {[%clk
0:01:26.4]} 29. h4 {[%clk 0:02:24.9]} 29... Kh6 {[%clk 0:01:24.4]} 30. Kd4
{[%clk 0:02:24.5]} 30... gxh4 {[%clk 0:01:11.8]} 31. gxh4 {[%clk 0:02:25.4]}
31... Kh7 {[%clk 0:01:12.6]} 32. Kc5 {[%clk 0:02:21.2]} 32... Kh6 {[%clk
0:01:12.4]} 33. a4 {[%clk 0:02:20.8]} 33... Kh7 {[%clk 0:01:09.5]} 34. a5 {[%clk
0:02:20.9]} 34... a6 {[%clk 0:01:05.6]} 35. b4 {[%clk 0:02:19.1]} 35... Kh6
{[%clk 0:01:05.2]} 36. c4 {[%clk 0:02:19.1]} 36... Kh7 {[%clk 0:01:05.7]} 37.
Nxc6 {[%clk 0:02:06]} 37... Kg6 {[%clk 0:01:04.1]} 38. Nb8 {[%clk 0:02:06.6]}
38... Kxf6 {[%clk 0:01:01.6]} 39. Nxa6 {[%clk 0:02:06.9]} 39... Ke5 {[%clk
0:00:57.4]} 40. Nxc7 {[%clk 0:02:05.7]} 40... Bd7 {[%clk 0:00:57.8]} 41. a6
{[%clk 0:02:06.2]} 41... Bc8 {[%clk 0:00:58.3]} 42. a7 {[%clk 0:02:05.5]} 42...
Bb7 {[%clk 0:00:58.3]} 43. Kb6 {[%clk 0:02:06.2]} 43... Bh1 {[%clk 0:00:56.1]}
44. c5 {[%clk 0:02:05.9]} 44... f5 {[%clk 0:00:55.9]} 45. c6 {[%clk 0:02:06.3]}
45... f4 {[%clk 0:00:55.8]} 46. a8=Q {[%clk 0:02:06.5]} 46... f3 {[%clk
0:00:56.3]} 47. Qe8+ {[%clk 0:02:06.5]} 47... Kf4 {[%clk 0:00:57.2]} 48. Qe1
{[%clk 0:02:04.4]} 48... Bg2 {[%clk 0:00:56.6]} 49. Qf2 {[%clk 0:02:04.6]} 49...
Kg4 {[%clk 0:00:56.2]} 50. Nd5 {[%clk 0:02:04.7]} 50... Bf1 {[%clk 0:00:55.8]}
51. Qxf1 {[%clk 0:02:04.5]} 51... f2 {[%clk 0:00:55.9]} 52. Qxf2 {[%clk
0:02:04.2]} 52... Kh3 {[%clk 0:00:56.8]} 53. Nf4+ {[%clk 0:02:03.9]} 53... Kg4
{[%clk 0:00:56.8]} 54. Nxh5 {[%clk 0:02:04.3]} 54... Kh3 {[%clk 0:00:56.7]} 55.
Qg3# {[%clk 0:02:04.6]} 1-0

[Event "Late-Titled-Tuesday-Blitz-May-28-2024"]
[Site "Chess.com"]
[Date "2024.05.28"]
[Round "5"]
[White "GianmarcoVaR"]
[Black "rezamahdavi2008"]
[Result "0-1"]
[WhiteElo "2717"]
[BlackElo "2994"]
[TimeControl "180+1"]
[EndTime "14:54:17 PDT"]
[Termination "rezamahdavi2008 won by resignation"]

1. Nf3 {[%clk 0:02:59.4]} 1... Nf6 {[%clk 0:02:59.3]} 2. g3 {[%clk 0:03:00.3]}
2... b6 {[%clk 0:02:58.4]} 3. Bg2 {[%clk 0:03:01.2]} 3... Bb7 {[%clk 0:02:59.3]}
4. O-O {[%clk 0:03:01.9]} 4... g6 {[%clk 0:03:00]} 5. d3 {[%clk 0:03:01.6]} 5...
Bg7 {[%clk 0:02:59.8]} 6. e4 {[%clk 0:03:01]} 6... d6 {[%clk 0:03:00.3]} 7. Nc3
{[%clk 0:02:57.5]} 7... c5 {[%clk 0:02:59.8]} 8. Bf4 {[%clk 0:02:52.6]} 8... O-O
{[%clk 0:02:49.3]} 9. Qd2 {[%clk 0:02:50.7]} 9... Nc6 {[%clk 0:02:44.9]} 10. e5
{[%clk 0:02:34.3]} 10... dxe5 {[%clk 0:02:44.3]} 11. Nxe5 {[%clk 0:02:34.6]}
11... Rc8 {[%clk 0:02:44.2]} 12. Rfe1 {[%clk 0:02:25.6]} 12... Re8 {[%clk
0:02:35.6]} 13. a4 {[%clk 0:02:05.1]} 13... Na5 {[%clk 0:02:22.9]} 14. Bxb7
{[%clk 0:01:45.1]} 14... Nxb7 {[%clk 0:02:23.8]} 15. Bh6 {[%clk 0:01:45.8]}
15... Bxh6 {[%clk 0:02:16.6]} 16. Qxh6 {[%clk 0:01:46]} 16... Nd6 {[%clk
0:02:15.5]} 17. h3 {[%clk 0:01:37.1]} 17... Nf5 {[%clk 0:02:12.1]} 18. Qf4
{[%clk 0:01:36.5]} 18... Nd4 {[%clk 0:02:12]} 19. Rac1 {[%clk 0:01:34.8]} 19...
Kg7 {[%clk 0:02:05.4]} 20. Ne4 {[%clk 0:01:34.2]} 20... Qd5 {[%clk 0:02:01.7]}
21. Nd2 {[%clk 0:01:20.6]} 21... Red8 {[%clk 0:01:45.6]} 22. Ndc4 {[%clk
0:01:16.8]} 22... h6 {[%clk 0:01:34.8]} 23. h4 {[%clk 0:01:10.2]} 23... Rb8
{[%clk 0:01:29.2]} 24. Ne3 {[%clk 0:00:59.1]} 24... Qxe5 {[%clk 0:01:24.1]} 0-1

[Event "Late-Titled-Tuesday-Blitz-May-28-2024"]
[Site "Chess.com"]
[Date "2024.05.28"]
[Round "5"]
[White "Sanan_Sjugirov"]
[Black "GarayevKanan"]
[Result "0-1"]
[WhiteElo "2967"]
[BlackElo "2723"]
[TimeControl "180+1"]
[EndTime "14:54:18 PDT"]
[Termination "GarayevKanan won by resignation"]

1. e4 {[%clk 0:03:00.9]} 1... e5 {[%clk 0:02:52.6]} 2. Nf3 {[%clk 0:03:00.7]}
2... Nf6 {[%clk 0:02:51.8]} 3. Nxe5 {[%clk 0:02:59.9]} 3... d6 {[%clk
0:02:50.6]} 4. Nf3 {[%clk 0:02:59.9]} 4... Nxe4 {[%clk 0:02:51.3]} 5. d3 {[%clk
0:03:00.5]} 5... Nf6 {[%clk 0:02:50.7]} 6. d4 {[%clk 0:03:01.1]} 6... d5 {[%clk
0:02:50.9]} 7. h3 {[%clk 0:03:01.5]} 7... h6 {[%clk 0:02:50.3]} 8. Bd3 {[%clk
0:03:01.1]} 8... Bd6 {[%clk 0:02:50.7]} 9. O-O {[%clk 0:03:01.2]} 9... O-O
{[%clk 0:02:51.4]} 10. Nc3 {[%clk 0:02:59.9]} 10... c6 {[%clk 0:02:51]} 11. Re1
{[%clk 0:02:56.6]} 11... Re8 {[%clk 0:02:46.7]} 12. Ne5 {[%clk 0:02:56.7]} 12...
Nbd7 {[%clk 0:02:45.6]} 13. Bf4 {[%clk 0:02:56.5]} 13... Qc7 {[%clk 0:02:44.2]}
14. Qe2 {[%clk 0:02:07.7]} 14... b5 {[%clk 0:02:35.9]} 15. Bg3 {[%clk
0:01:52.4]} 15... b4 {[%clk 0:02:32]} 16. Na4 {[%clk 0:01:47.3]} 16... Bb7
{[%clk 0:02:32.5]} 17. Qd2 {[%clk 0:01:27.3]} 17... c5 {[%clk 0:02:12.6]} 18.
Nxd7 {[%clk 0:01:18.1]} 18... Nxd7 {[%clk 0:02:10.6]} 19. Bxd6 {[%clk
0:01:15.3]} 19... Qxd6 {[%clk 0:02:11.5]} 20. dxc5 {[%clk 0:01:09.1]} 20... Qf6
{[%clk 0:02:12]} 21. Qxb4 {[%clk 0:01:06.4]} 21... Bc6 {[%clk 0:02:12.6]} 22.
Nc3 {[%clk 0:00:48.7]} 22... Rxe1+ {[%clk 0:02:08.4]} 23. Rxe1 {[%clk
0:00:48.4]} 23... Ne5 {[%clk 0:02:08.3]} 24. Bb5 {[%clk 0:00:06.5]} 24... Re8
{[%clk 0:02:02.2]} 25. Kf1 {[%clk 0:00:03.6]} 25... Rb8 {[%clk 0:01:59.1]} 26.
Qa4 {[%clk 0:00:03.5]} 26... Bxb5+ {[%clk 0:01:57.6]} 27. Nxb5 {[%clk
0:00:04.4]} 27... Nc4 {[%clk 0:01:58.3]} 28. b3 {[%clk 0:00:03.3]} 28... Nd2+
{[%clk 0:01:57.7]} 29. Kg1 {[%clk 0:00:03.8]} 29... Ne4 {[%clk 0:01:58.6]} 30.
Rf1 {[%clk 0:00:03.3]} 30... a6 {[%clk 0:01:54]} 31. Nd6 {[%clk 0:00:03.2]}
31... Nxc5 {[%clk 0:01:52.2]} 32. Qxa6 {[%clk 0:00:03.4]} 32... Nxa6 {[%clk
0:01:52.1]} 0-1

[Event "Late-Titled-Tuesday-Blitz-May-28-2024"]
[Site "Chess.com"]
[Date "2024.05.28"]
[Round "5"]
[White "GlavkonVVS"]
[Black "MaiqMaster"]
[Result "0-1"]
[WhiteElo "2569"]
[BlackElo "2465"]
[TimeControl "180+1"]
[EndTime "14:54:18 PDT"]
[Termination "MaiqMaster won by checkmate"]

1. c4 {[%clk 0:03:00.9]} 1... c5 {[%clk 0:02:57.9]} 2. Nc3 {[%clk 0:03:01.2]}
2... Nc6 {[%clk 0:02:57.1]} 3. g3 {[%clk 0:03:01.7]} 3... g6 {[%clk 0:02:56.4]}
4. Bg2 {[%clk 0:03:02.1]} 4... Bg7 {[%clk 0:02:56.3]} 5. Nf3 {[%clk 0:03:02.7]}
5... d6 {[%clk 0:02:54.7]} 6. d3 {[%clk 0:03:03.1]} 6... e5 {[%clk 0:02:52.7]}
7. a3 {[%clk 0:03:01]} 7... a5 {[%clk 0:02:52.1]} 8. Rb1 {[%clk 0:03:00.6]} 8...
Nge7 {[%clk 0:02:51]} 9. O-O {[%clk 0:03:00.4]} 9... O-O {[%clk 0:02:50.5]} 10.
Ne1 {[%clk 0:02:57.6]} 10... Be6 {[%clk 0:02:50]} 11. Nc2 {[%clk 0:02:57.3]}
11... d5 {[%clk 0:02:50.1]} 12. b3 {[%clk 0:02:56.8]} 12... Rb8 {[%clk
0:02:45.2]} 13. e4 {[%clk 0:02:54.9]} 13... d4 {[%clk 0:02:39.6]} 14. Nb5 {[%clk
0:02:45.7]} 14... b6 {[%clk 0:02:24.5]} 15. b4 {[%clk 0:02:41.7]} 15... axb4
{[%clk 0:02:24.5]} 16. axb4 {[%clk 0:02:41.3]} 16... cxb4 {[%clk 0:02:13.6]} 17.
Nxb4 {[%clk 0:02:41.2]} 17... Nxb4 {[%clk 0:02:14.5]} 18. Rxb4 {[%clk
0:02:41.3]} 18... Nc6 {[%clk 0:02:15.2]} 19. Rb1 {[%clk 0:02:40]} 19... Qd7
{[%clk 0:02:10.6]} 20. f4 {[%clk 0:02:35.9]} 20... exf4 {[%clk 0:02:09.5]} 21.
Bxf4 {[%clk 0:02:33.1]} 21... Ra8 {[%clk 0:02:07.2]} 22. Qd2 {[%clk 0:02:14.6]}
22... Ne5 {[%clk 0:01:48]} 23. Rb3 {[%clk 0:02:02.4]} 23... Nxc4 {[%clk
0:01:32.1]} 24. dxc4 {[%clk 0:01:57.4]} 24... Bxc4 {[%clk 0:01:33]} 25. Rfb1
{[%clk 0:01:43.1]} 25... Bxb3 {[%clk 0:01:29.9]} 26. Rxb3 {[%clk 0:01:42.1]}
26... Ra1+ {[%clk 0:01:24.5]} 27. Bf1 {[%clk 0:01:41.4]} 27... Re8 {[%clk
0:01:12.4]} 28. Nd6 {[%clk 0:01:30.9]} 28... Rea8 {[%clk 0:00:58.7]} 29. e5
{[%clk 0:01:19.4]} 29... R8a2 {[%clk 0:00:55]} 30. Qd3 {[%clk 0:01:13]} 30...
Qh3 {[%clk 0:00:48.7]} 31. Rxb6 {[%clk 0:01:01.6]} 31... Qg2# {[%clk 0:00:45.9]}
0-1

[Event "Late-Titled-Tuesday-Blitz-May-28-2024"]
[Site "Chess.com"]
[Date "2024.05.28"]
[Round "5"]
[White "Goryachkina"]
[Black "Shankland"]
[Result "1/2-1/2"]
[WhiteElo "2726"]
[BlackElo "2995"]
[TimeControl "180+1"]
[EndTime "14:54:26 PDT"]
[Termination "Game drawn by repetition"]

1. e4 {[%clk 0:02:59.5]} 1... c5 {[%clk 0:02:59.8]} 2. Nf3 {[%clk 0:02:59.4]}
2... d6 {[%clk 0:03:00.2]} 3. Bb5+ {[%clk 0:02:58.2]} 3... Bd7 {[%clk
0:03:00.6]} 4. Bxd7+ {[%clk 0:02:57.6]} 4... Nxd7 {[%clk 0:03:01.5]} 5. O-O
{[%clk 0:02:54.4]} 5... Ngf6 {[%clk 0:03:01.4]} 6. Qe2 {[%clk 0:02:52.3]} 6...
e6 {[%clk 0:03:01.3]} 7. b3 {[%clk 0:02:49.7]} 7... Be7 {[%clk 0:03:00.1]} 8.
Bb2 {[%clk 0:02:49.3]} 8... O-O {[%clk 0:02:59.4]} 9. d4 {[%clk 0:02:46.9]} 9...
d5 {[%clk 0:02:59.3]} 10. exd5 {[%clk 0:02:34.2]} 10... exd5 {[%clk 0:02:59.2]}
11. Nbd2 {[%clk 0:02:27.3]} 11... Re8 {[%clk 0:02:58.6]} 12. Rfe1 {[%clk
0:02:24.2]} 12... a6 {[%clk 0:02:51.8]} 13. Qf1 {[%clk 0:02:19.1]} 13... Rc8
{[%clk 0:02:45.3]} 14. h3 {[%clk 0:01:57.9]} 14... Qb6 {[%clk 0:02:41.4]} 15. c4
{[%clk 0:01:49.5]} 15... cxd4 {[%clk 0:02:36.4]} 16. Bxd4 {[%clk 0:01:48.6]}
16... Bc5 {[%clk 0:02:36.5]} 17. Bxc5 {[%clk 0:01:45.6]} 17... Nxc5 {[%clk
0:02:35.7]} 18. cxd5 {[%clk 0:01:43.2]} 18... Nxd5 {[%clk 0:02:31.9]} 19. Nc4
{[%clk 0:01:42.5]} 19... Qf6 {[%clk 0:02:31.1]} 20. Rxe8+ {[%clk 0:01:25.5]}
20... Rxe8 {[%clk 0:02:30.3]} 21. Re1 {[%clk 0:01:24.7]} 21... Rd8 {[%clk
0:02:26.7]} 22. Qe2 {[%clk 0:01:21.3]} 22... g6 {[%clk 0:02:25.7]} 23. g3 {[%clk
0:01:19.9]} 23... Ne6 {[%clk 0:02:17.4]} 24. h4 {[%clk 0:00:54.2]} 24... Nc3
{[%clk 0:02:10.2]} 25. Qe3 {[%clk 0:00:48.6]} 25... Nxa2 {[%clk 0:02:09.4]} 26.
Ng5 {[%clk 0:00:44.1]} 26... Nxg5 {[%clk 0:01:45]} 27. hxg5 {[%clk 0:00:45]}
27... Qc3 {[%clk 0:01:45]} 28. Qe7 {[%clk 0:00:42.5]} 28... Rf8 {[%clk
0:01:41.4]} 29. Re3 {[%clk 0:00:38.5]} 29... Qb4 {[%clk 0:01:37.5]} 30. Nd6
{[%clk 0:00:32.6]} 30... Nc3 {[%clk 0:01:33.4]} 31. Nxf7 {[%clk 0:00:26.9]}
31... Qxe7 {[%clk 0:01:24.9]} 32. Nh6+ {[%clk 0:00:26.8]} 32... Kh8 {[%clk
0:01:25.5]} 33. Rxe7 {[%clk 0:00:27.2]} 33... b5 {[%clk 0:01:25.2]} 34. Nf7+
{[%clk 0:00:25.2]} 34... Kg8 {[%clk 0:01:24.9]} 35. Nh6+ {[%clk 0:00:25.6]}
35... Kh8 {[%clk 0:01:25.1]} 36. Nf7+ {[%clk 0:00:26]} 36... Kg8 {[%clk
0:01:25.5]} 37. Nh6+ {[%clk 0:00:26.5]} 37... Kh8 {[%clk 0:01:25.9]} 1/2-1/2